{"text_format":"3","workbook":"xlsx","n_sheets":2,"sheets":["Inventário de Equipamentos","Configurações"],"not_rendered":{"defined_names":4},"read":"whole","date_system":"1900"}

{"sheet":"Inventário de Equipamentos","index":0,"n_rows":35,"n_cols":6,"rows_kept":35,"merged":[[0,1,2,2],[0,4,0,5]]}
[]
[{"$nulls":4},"Realçar itens anteriores a:"]
[{"$nulls":4},4]
[]
[null,"CÓD. EQUIPAMENTO","NOME DO ITEM","ATRIBUÍDO A","DATA DE EMISSÃO","IDADE DO ITEM"]
[null,"ITEM0001","cadeira","Funcionário 1",{"$f":"TODAY()-25","v":"2012-10-27"},{"$f":"IF(tblEquipmentInventory[[#This Row],[DATA DE EMISSÃO]]<>\"\",TODAY()-tblEquipmentInventory[[#This Row],[DATA DE EMISSÃO]],\"\")","v":{"v":25,"d":"25 dias"}}]
[null,"ITEM0002","impressora a laser","Funcionário 2",{"$f":"TODAY()-479","v":"2011-07-31"},{"$f":"IF(tblEquipmentInventory[[#This Row],[DATA DE EMISSÃO]]<>\"\",TODAY()-tblEquipmentInventory[[#This Row],[DATA DE EMISSÃO]],\"\")","v":{"v":479,"d":"479 dias"}}]
[null,"ITEM0003","scanner","Funcionário 3",{"$f":"TODAY()-177","v":"2012-05-28"},{"$f":"IF(tblEquipmentInventory[[#This Row],[DATA DE EMISSÃO]]<>\"\",TODAY()-tblEquipmentInventory[[#This Row],[DATA DE EMISSÃO]],\"\")","v":{"v":177,"d":"177 dias"}}]
[null,"ITEM0004","impressora a laser","Funcionário 7",{"$f":"TODAY()-18","v":"2012-11-03"},{"$f":"IF(tblEquipmentInventory[[#This Row],[DATA DE EMISSÃO]]<>\"\",TODAY()-tblEquipmentInventory[[#This Row],[DATA DE EMISSÃO]],\"\")","v":{"v":18,"d":"18 dias"}}]
[null,"ITEM0005","cafeteira","Funcionário 20",{"$f":"TODAY()-227","v":"2012-04-08"},{"$f":"IF(tblEquipmentInventory[[#This Row],[DATA DE EMISSÃO]]<>\"\",TODAY()-tblEquipmentInventory[[#This Row],[DATA DE EMISSÃO]],\"\")","v":{"v":227,"d":"227 dias"}}]
[null,"ITEM0006","scanner","Funcionário 14",{"$f":"TODAY()-50","v":"2012-10-02"},{"$f":"IF(tblEquipmentInventory[[#This Row],[DATA DE EMISSÃO]]<>\"\",TODAY()-tblEquipmentInventory[[#This Row],[DATA DE EMISSÃO]],\"\")","v":{"v":50,"d":"50 dias"}}]
[null,"ITEM0007","tabela","Funcionário 4",{"$f":"TODAY()-120","v":"2012-07-24"},{"$f":"IF(tblEquipmentInventory[[#This Row],[DATA DE EMISSÃO]]<>\"\",TODAY()-tblEquipmentInventory[[#This Row],[DATA DE EMISSÃO]],\"\")","v":{"v":120,"d":"120 dias"}}]
[null,"ITEM0008","copiadora","Funcionário 12",{"$f":"TODAY()-499","v":"2011-07-11"},{"$f":"IF(tblEquipmentInventory[[#This Row],[DATA DE EMISSÃO]]<>\"\",TODAY()-tblEquipmentInventory[[#This Row],[DATA DE EMISSÃO]],\"\")","v":{"v":499,"d":"499 dias"}}]
[null,"ITEM0009","monitor extra","Funcionário 8",{"$f":"TODAY()-30","v":"2012-10-22"},{"$f":"IF(tblEquipmentInventory[[#This Row],[DATA DE EMISSÃO]]<>\"\",TODAY()-tblEquipmentInventory[[#This Row],[DATA DE EMISSÃO]],\"\")","v":{"v":30,"d":"30 dias"}}]
[null,"ITEM0010","quadro de comunicações","Funcionário 19",{"$f":"TODAY()-50","v":"2012-10-02"},{"$f":"IF(tblEquipmentInventory[[#This Row],[DATA DE EMISSÃO]]<>\"\",TODAY()-tblEquipmentInventory[[#This Row],[DATA DE EMISSÃO]],\"\")","v":{"v":50,"d":"50 dias"}}]
[null,"ITEM0011","copiadora","Funcionário 12",{"$f":"TODAY()-450","v":"2011-08-29"},{"$f":"IF(tblEquipmentInventory[[#This Row],[DATA DE EMISSÃO]]<>\"\",TODAY()-tblEquipmentInventory[[#This Row],[DATA DE EMISSÃO]],\"\")","v":{"v":450,"d":"450 dias"}}]
[null,"ITEM0012","material de escritório","Funcionário 18",{"$f":"TODAY()-420","v":"2011-09-28"},{"$f":"IF(tblEquipmentInventory[[#This Row],[DATA DE EMISSÃO]]<>\"\",TODAY()-tblEquipmentInventory[[#This Row],[DATA DE EMISSÃO]],\"\")","v":{"v":420,"d":"420 dias"}}]
[null,"ITEM0013","monitor extra","Funcionário 8",{"$f":"TODAY()-250","v":"2012-03-16"},{"$f":"IF(tblEquipmentInventory[[#This Row],[DATA DE EMISSÃO]]<>\"\",TODAY()-tblEquipmentInventory[[#This Row],[DATA DE EMISSÃO]],\"\")","v":{"v":250,"d":"250 dias"}}]
[null,"ITEM0014","cafeteira","Funcionário 9",{"$f":"TODAY()-45","v":"2012-10-07"},{"$f":"IF(tblEquipmentInventory[[#This Row],[DATA DE EMISSÃO]]<>\"\",TODAY()-tblEquipmentInventory[[#This Row],[DATA DE EMISSÃO]],\"\")","v":{"v":45,"d":"45 dias"}}]
[null,"ITEM0015","material de escritório","Funcionário 13",{"$f":"TODAY()-502","v":"2011-07-08"},{"$f":"IF(tblEquipmentInventory[[#This Row],[DATA DE EMISSÃO]]<>\"\",TODAY()-tblEquipmentInventory[[#This Row],[DATA DE EMISSÃO]],\"\")","v":{"v":502,"d":"502 dias"}}]
[null,"ITEM0016","scanner","Funcionário 1",{"$f":"TODAY()-350","v":"2011-12-07"},{"$f":"IF(tblEquipmentInventory[[#This Row],[DATA DE EMISSÃO]]<>\"\",TODAY()-tblEquipmentInventory[[#This Row],[DATA DE EMISSÃO]],\"\")","v":{"v":350,"d":"350 dias"}}]
[null,"ITEM0017","copiadora","Funcionário 19",{"$f":"TODAY()-125","v":"2012-07-19"},{"$f":"IF(tblEquipmentInventory[[#This Row],[DATA DE EMISSÃO]]<>\"\",TODAY()-tblEquipmentInventory[[#This Row],[DATA DE EMISSÃO]],\"\")","v":{"v":125,"d":"125 dias"}}]
[null,"ITEM0018","quadro de comunicações","Funcionário 15",{"$f":"TODAY()-90","v":"2012-08-23"},{"$f":"IF(tblEquipmentInventory[[#This Row],[DATA DE EMISSÃO]]<>\"\",TODAY()-tblEquipmentInventory[[#This Row],[DATA DE EMISSÃO]],\"\")","v":{"v":90,"d":"90 dias"}}]
[null,"ITEM0019","cadeira","Funcionário 16",{"$f":"TODAY()-730","v":"2010-11-22"},{"$f":"IF(tblEquipmentInventory[[#This Row],[DATA DE EMISSÃO]]<>\"\",TODAY()-tblEquipmentInventory[[#This Row],[DATA DE EMISSÃO]],\"\")","v":{"v":730,"d":"730 dias"}}]
[null,"ITEM0020","pano de limpeza (1 pacote)","Funcionário 3",{"$f":"TODAY()-540","v":"2011-05-31"},{"$f":"IF(tblEquipmentInventory[[#This Row],[DATA DE EMISSÃO]]<>\"\",TODAY()-tblEquipmentInventory[[#This Row],[DATA DE EMISSÃO]],\"\")","v":{"v":540,"d":"540 dias"}}]
[null,"ITEM0021","impressora a laser","Funcionário 7",{"$f":"TODAY()-18","v":"2012-11-03"},{"$f":"IF(tblEquipmentInventory[[#This Row],[DATA DE EMISSÃO]]<>\"\",TODAY()-tblEquipmentInventory[[#This Row],[DATA DE EMISSÃO]],\"\")","v":{"v":18,"d":"18 dias"}}]
[null,"ITEM0022","laptop","Funcionário 8",{"$f":"TODAY()-283","v":"2012-02-12"},{"$f":"IF(tblEquipmentInventory[[#This Row],[DATA DE EMISSÃO]]<>\"\",TODAY()-tblEquipmentInventory[[#This Row],[DATA DE EMISSÃO]],\"\")","v":{"v":283,"d":"283 dias"}}]
[null,"ITEM0023","material de escritório","Funcionário 9",{"$f":"TODAY()-479","v":"2011-07-31"},{"$f":"IF(tblEquipmentInventory[[#This Row],[DATA DE EMISSÃO]]<>\"\",TODAY()-tblEquipmentInventory[[#This Row],[DATA DE EMISSÃO]],\"\")","v":{"v":479,"d":"479 dias"}}]
[null,"ITEM0024","impressora a laser","Funcionário 19",{"$f":"TODAY()-355","v":"2011-12-02"},{"$f":"IF(tblEquipmentInventory[[#This Row],[DATA DE EMISSÃO]]<>\"\",TODAY()-tblEquipmentInventory[[#This Row],[DATA DE EMISSÃO]],\"\")","v":{"v":355,"d":"355 dias"}}]
[null,"ITEM0025","tabela","Funcionário 7",{"$f":"TODAY()-28","v":"2012-10-24"},{"$f":"IF(tblEquipmentInventory[[#This Row],[DATA DE EMISSÃO]]<>\"\",TODAY()-tblEquipmentInventory[[#This Row],[DATA DE EMISSÃO]],\"\")","v":{"v":28,"d":"28 dias"}}]
[null,"ITEM0026","quadro de comunicações","Funcionário 8",{"$f":"TODAY()-28","v":"2012-10-24"},{"$f":"IF(tblEquipmentInventory[[#This Row],[DATA DE EMISSÃO]]<>\"\",TODAY()-tblEquipmentInventory[[#This Row],[DATA DE EMISSÃO]],\"\")","v":{"v":28,"d":"28 dias"}}]
[null,"ITEM0027","laptop","Funcionário 19",{"$f":"TODAY()-736","v":"2010-11-16"},{"$f":"IF(tblEquipmentInventory[[#This Row],[DATA DE EMISSÃO]]<>\"\",TODAY()-tblEquipmentInventory[[#This Row],[DATA DE EMISSÃO]],\"\")","v":{"v":736,"d":"736 dias"}}]
[null,"ITEM0028","tabela","Funcionário 12",{"$f":"TODAY()-68","v":"2012-09-14"},{"$f":"IF(tblEquipmentInventory[[#This Row],[DATA DE EMISSÃO]]<>\"\",TODAY()-tblEquipmentInventory[[#This Row],[DATA DE EMISSÃO]],\"\")","v":{"v":68,"d":"68 dias"}}]
[null,"ITEM0029","scanner","Funcionário 14",{"$f":"TODAY()-67","v":"2012-09-15"},{"$f":"IF(tblEquipmentInventory[[#This Row],[DATA DE EMISSÃO]]<>\"\",TODAY()-tblEquipmentInventory[[#This Row],[DATA DE EMISSÃO]],\"\")","v":{"v":67,"d":"67 dias"}}]
[null,"ITEM0030","cafeteira","Funcionário 3",{"$f":"TODAY()-149","v":"2012-06-25"},{"$f":"IF(tblEquipmentInventory[[#This Row],[DATA DE EMISSÃO]]<>\"\",TODAY()-tblEquipmentInventory[[#This Row],[DATA DE EMISSÃO]],\"\")","v":{"v":149,"d":"149 dias"}}]

{"sheet":"Configurações","index":1,"n_rows":23,"n_cols":4,"rows_kept":23}
[]
[]
[null,"FUNCIONÁRIOS",null,"ITENS"]
[null,"Funcionário 1",null,"cadeira"]
[null,"Funcionário 2",null,"cafeteira"]
[null,"Funcionário 3",null,"copiadora"]
[null,"Funcionário 4",null,"desktop"]
[null,"Funcionário 5",null,"pano de limpeza (1 pacote)"]
[null,"Funcionário 6",null,"monitor extra"]
[null,"Funcionário 7",null,"impressora a jato de tinta"]
[null,"Funcionário 8",null,"laptop"]
[null,"Funcionário 9",null,"impressora a laser"]
[null,"Funcionário 10",null,"marcadores (pacote com 3 unidades)"]
[null,"Funcionário 11",null,"scanner"]
[null,"Funcionário 12",null,"material de escritório"]
[null,"Funcionário 13",null,"tabela"]
[null,"Funcionário 14",null,"Unidade USB"]
[null,"Funcionário 15",null,"quadro de comunicações"]
[null,"Funcionário 16"]
[null,"Funcionário 17"]
[null,"Funcionário 18"]
[null,"Funcionário 19"]
[null,"Funcionário 20"]